fUSD/lending_fUSD_20240104
["ID","MTS","AMOUNT","RATE_DAILY","PERIOD"]
[310105317,1704337849946,-151.0,0.0003315,2]
[310105318,1704337849955,-156.697704,0.0003315,7]
[310105319,1704337849965,-151.0,0.0003315,7]
[310105320,1704337849974,-151.0,0.0003315,7]
[310105321,1704337849984,-151.0,0.0003315,7]
[310105322,1704337849994,-151.0,0.0003315,7]
[310105323,1704337850003,-151.0,0.0003315,7]
[310105324,1704337850013,-151.0,0.0003315,7]
[310105325,1704337850025,-151.0,0.0003315,7]
[310105326,1704337850034,-1158.26851442,0.0003318,6]
[310105327,1704337850044,-157.40104,0.00033198,2]
[310105328,1704337850053,-1488.81718819,0.00033268,2]
[310105329,1704337850063,-345.69653808,0.00033294,2]
[310105330,1704337850072,-157.40104,0.00033298,2]
[310105331,1704337850081,-5000.0,0.00033308,2]
[310105332,1704337850090,-160.01981586,0.00033324,2]
[310105333,1704337850098,-290.68343158,0.00033324,2]
[310105334,1704337850107,-1077.4129374,0.00033324,2]
[310105335,1704337850116,-200.1374795,0.00033324,2]
[310105336,1704337850125,-157.44541784,0.00033324,2]
[310105337,1704337850135,-977.08492934,0.00033324,2]
[310105338,1704337850144,-24959.08371491,0.00033338,10]
[310105339,1704337850513,-322.57331178,0.00033338,10]
[310105340,1704337850536,-102178.03836194,0.00033338,10]
[310105341,1704337850845,-500.0,0.00032876,2]
[310105342,1704337850855,-1881.729,0.00033338,10]
[310105343,1704337850867,-510.13070881,0.00033338,10]
[310105344,1704337851319,-1010.18967703,0.00030979,4]
[310105345,1704337851329,-1228.73,0.0003098,2]
[310105346,1704337851340,-402.66855017,0.00032876,2]
[310105347,1704337851349,-500.0,0.00032876,2]
[310105348,1704337851359,-251.20900887,0.00033338,10]
[310105349,1704337851371,-385.96355,0.00033338,10]
[310105350,1704337851384,-2105.55,0.00033338,10]
[310105351,1704337851424,-0.00454683,0.00033338,10]
[310105352,1704337851436,-2524.16728971,0.00033338,10]
[310105353,1704337851448,-3313.75588733,0.00033338,10]
[310105354,1704337852187,-514.6768985,0.00030979,4]
[310105355,1704337852198,-1058.21468185,0.00030979,4]
[310105356,1704337852208,-1424.24937271,0.00032875,2]
[310105357,1704337852218,-1239.75904694,0.00033338,10]
[310105358,1704337852230,-14217.78015455,0.00033338,10]
[310105359,1704337852239,-4577.24361454,0.00033338,10]
[310105360,1704337852249,-4827.1812758,0.00033338,10]
[310105361,1704337852261,-4667.43312922,0.00033338,10]
[310105362,1704337852275,-122.22086583,0.00033338,10]
[310105363,1704337852284,-253.316186,0.00033338,7]
[310105364,1704337852294,-151.0,0.00033338,7]
[310105365,1704337852304,-21.55886536,0.00033338,7]
[310105366,1704337852317,-129.44113464,0.00033338,7]
[310105367,1704337852329,-151.0,0.00033338,7]
[310105368,1704337852339,-151.0,0.00033338,7]
[310105369,1704337852348,-151.0,0.00033338,7]
[310105370,1704337852358,-164.658716,0.00033338,7]
[310105371,1704337852368,-157.40104,0.00033398,2]
[310105372,1704337852378,-152.0,0.00033405,3]
[310105373,1704337852388,-500.0,0.00033406,2]
[310105374,1704337852398,-337.3862437,0.00033422,4]
[310105375,1704337852407,-220.26666446,0.00033422,4]
[310105376,1704337852418,-626.83867298,0.00033422,4]
[310105377,1704337852427,-422.0,0.00033424,5]
[310105378,1704337852437,-1105.69,0.00033424,2]
[310105379,1704337852450,-500.0,0.00033424,2]
[310105380,1704337852460,-500.0,0.00033424,2]
[310105381,1704337852470,-500.0,0.00033424,2]
[310105382,1704337852479,-500.0,0.00033424,2]
[310105383,1704337852490,-500.0,0.00033424,2]
[310105384,1704337852500,-825.31,0.00033424,2]
[310105385,1704337852510,-500.0,0.00033424,2]
[310105386,1704337852520,-500.0,0.00033424,2]
[310105387,1704337852530,-500.0,0.00033424,2]
[310105388,1704337852539,-500.0,0.00033424,2]
[310105389,1704337852548,-500.0,0.00033424,2]
[310105390,1704337852557,-231.61029096,0.00033424,2]
[310105391,1704337852566,-500.0,0.00033424,2]
[310105392,1704337852576,-855.02,0.00033424,2]
[310105393,1704337852585,-493.22250629,0.00033424,2]
[310105394,1704337852595,-521.13575168,0.00033424,2]
[310105395,1704337852605,-513.85136989,0.00033424,2]
[310105396,1704337852614,-500.0,0.00033424,2]
[310105397,1704337852623,-221.31305972,0.00033424,2]
[310105398,1704337852635,-304.27195344,0.00033424,2]
[310105399,1704337852645,-500.0,0.00033424,2]
[310105400,1704337852656,-500.0,0.00033424,2]
[310105401,1704337852665,-500.0,0.00033424,2]
[310105402,1704337852675,-500.0,0.00033424,2]
[310105403,1704337852684,-500.0,0.00033424,2]
[310105404,1704337852694,-1420.99,0.00033424,2]
[310105405,1704337852705,-500.0,0.00033424,2]
[310105406,1704337852714,-194.95377222,0.00033424,2]
[310105407,1704337852724,-500.0,0.00033424,2]
[310105408,1704337852734,-500.0,0.00033424,2]
[310105409,1704337852743,-500.0,0.00033424,2]
[310105410,1704337852753,-597.72,0.00033424,2]
[310105411,1704337852762,-500.0,0.00033424,2]
[310105412,1704337852772,-540.11,0.00033424,2]
[310105413,1704337852782,-500.0,0.00033424,2]
[310105414,1704337852793,-1121.46,0.00033424,2]
[310105415,1704337852803,-500.0,0.00033424,2]
[310105416,1704337852814,-500.0,0.00033424,2]
[310105417,1704337852824,-500.0,0.00033424,2]
[310105418,1704337852834,-500.0,0.00033424,2]
[310105419,1704337852844,-500.0,0.00033424,2]
[310105420,1704337852855,-289.59359354,0.00033424,2]
[310105421,1704337852864,-379.50214692,0.00033424,2]
[310105422,1704337852876,-120.49785308,0.00033424,2]
[310105423,1704337852886,-317.54764306,0.00033424,2]
[310105424,1704337852895,-500.0,0.00033424,2]
[310105425,1704337852906,-273.20644847,0.00033424,2]
[310105426,1704337852917,-500.0,0.00033424,2]
[310105427,1704337852926,-500.0,0.00033424,2]
[310105428,1704337852936,-500.0,0.00033424,2]
[310105429,1704337852947,-500.0,0.00033424,2]
[310105430,1704337852957,-295.6047458,0.00033424,2]
[310105431,1704337852966,-500.0,0.00033424,2]
[310105432,1704337852977,-311.34330959,0.00033424,2]
[310105433,1704337852990,-188.65669041,0.00033424,2]
[310105434,1704337852999,-281.74850779,0.00033424,2]
[310105435,1704337896077,40000.0,0.00022511,7]
[310105470,1704339031698,-285.0,0.00026084,2]
[310105471,1704339031711,-145.24132448,0.00026084,2]
[310105472,1704339031721,-201.39591919,0.00026085,2]
[310105473,1704339031730,-152.12535051,0.00026085,2]
[310105474,1704339031739,-88.38456748,0.000261,2]
[310105475,1704339031767,-1350.61543252,0.000261,2]
[310105476,1704339031777,-13050.0,0.000261,2]
[310105477,1704339031786,-350.0,0.00027,3]
[310105478,1704339031796,-2626.81000858,0.000285,2]
[310105479,1704339031883,-2927.49027753,0.000285,2]
[310105480,1704339031893,-401.30622249,0.00028897,2]
[310105481,1704339032001,-1.93377751,0.00028897,2]
[310105482,1704339032011,-400.0,0.00029,3]
[310105483,1704339032020,-167.27976254,0.0002957,2]
[310105484,1704339032030,-155.0,0.00030756,2]
[310105485,1704339032040,-681.6710574,0.00030757,4]
[310105486,1704339032049,-742.44,0.00030758,2]
[310105487,1704339032059,-1390.99573653,0.00030788,2]
[310105488,1704339037740,-1035.58578986,0.00030788,2]
[310105489,1704339037911,-2389.34327734,0.00030788,2]
[310105490,1704339037927,-2161.1,0.00030788,2]
[310105491,1704339037972,-445.94319877,0.00030788,2]
[310105492,1704339038029,-16457.0319975,0.00030788,2]
[310105493,1704339038039,-189.58,0.000308,2]
[310105494,1704339038048,-254.57,0.00030829,2]
[310105495,1704339038058,-166.84,0.0003085,2]
[310105496,1704339038068,-1814.45,0.00030874,2]
[310105497,1704339038077,-1000.0,0.000309,2]
[310105498,1704339038087,-250.0,0.00030933,2]
[310105499,1704339038097,-450.0,0.00031,3]
[310105500,1704339038107,-150.0,0.00031,2]
[310105501,1704339038117,-194.0,0.0003108,2]
[310105502,1704339038127,-150.14,0.00031101,2]
[310105503,1704339038136,-403.24,0.00031161,2]
[310105504,1704339038146,-1000.0,0.00031493,2]
[310105505,1704339038156,-151.0,0.0003163,120]
[310105506,1704339038166,-1000.0,0.00031658,2]
[310105507,1704339038175,-166.84,0.00031829,2]
[310105508,1704339038185,-24.7775989,0.00032,33]
[310105509,1704339038246,-275.2224011,0.00032,33]
[310105510,1704339038257,-59.41411226,0.00032,2]
[310105536,1704339041132,-300.0,0.00031,32]
[310105537,1704339041142,-102.4184913,0.00032,2]
[310105538,1704339041152,-151.0,0.00032276,30]
[310105539,1704339041162,-157.40104,0.00032398,2]
[310105540,1704339041172,-123.0581292,0.00032498,2]
[310105541,1704339041185,-34.3429108,0.00032498,2]
[310105542,1704339041195,-157.40104,0.00032598,2]
[310105543,1704339041204,-110.4621592,0.00032674,2]
[310105544,1704339041227,-278.3136408,0.00032674,2]
[310105545,1704339041238,-265.81636341,0.00032676,2]
[310105549,1704339042683,-734.18363659,0.00032676,2]
[310105550,1704339042693,-157.40104,0.00032698,2]
[310105551,1704339042702,-223.32257839,0.000327,2]
[310105552,1704339042711,-223.32257822,0.00032747,2]
[310105553,1704339042720,-2742.06067633,0.00032756,2]
[310105554,1704339042732,-337.27249606,0.00032756,2]
[310105555,1704339042747,-3813.30621423,0.00032756,2]
[310105556,1704339042758,-6468.248137,0.00032756,2]
[310105557,1704339042770,-4009.30152436,0.00032756,2]
[310105558,1704339042794,-769.61865015,0.00032756,2]
[310105559,1704339042806,-1381.05676272,0.00032756,2]
[310105560,1704339042849,-899.64934428,0.00032756,2]
[310105561,1704339042860,-475.79279341,0.00032756,2]
[310105562,1704339042871,-2198.74877397,0.00032756,2]
[310105563,1704339042882,-241.69802317,0.00032766,2]
[310105564,1704339042892,-241.69802317,0.00032766,2]
[310105565,1704339042902,-241.69802317,0.00032766,2]
[310105566,1704339042911,-241.69802317,0.00032766,2]
[310105567,1704339042920,-241.69802317,0.00032766,2]
[310105568,1704339042929,-241.69802317,0.00032766,2]
[310105569,1704339042938,-241.69802317,0.00032766,2]
[310105570,1704339042947,-241.69802317,0.00032766,2]
[310105571,1704339042956,-241.69802317,0.00032766,2]
[310105572,1704339042965,-241.69802317,0.00032766,2]
[310105573,1704339042974,-241.69802317,0.00032766,2]
[310105574,1704339042985,-241.69802317,0.00032766,2]
[310105575,1704339042994,-241.69802317,0.00032766,2]
[310105576,1704339043003,-241.69802317,0.00032766,2]
[310105577,1704339043012,-241.69802317,0.00032766,2]
[310105578,1704339043021,-241.69802317,0.00032766,2]
[310105579,1704339043030,-241.69802317,0.00032766,2]
[310105580,1704339043039,-241.69802317,0.00032766,2]
[310105581,1704339043048,-241.69802317,0.00032766,2]
[310105582,1704339043057,-241.69802317,0.00032766,2]
[310105583,1704339043066,-241.69802317,0.00032766,2]
[310105584,1704339043076,-241.69802317,0.00032766,2]
[310105585,1704339043086,-241.69802317,0.00032766,2]
[310105586,1704339043096,-241.69802317,0.00032766,2]
[310105587,1704339043107,-241.69802317,0.00032766,2]
[310105588,1704339043116,-241.69802317,0.00032766,2]
[310105589,1704339043127,-241.69802317,0.00032766,2]
[310105590,1704339043137,-219.49176927,0.00032766,2]
[310105591,1704339043151,-22.2062539,0.00032766,2]
[310105592,1704339043162,-241.69802317,0.00032766,2]
[310105593,1704339043173,-241.69802317,0.00032766,2]
[310105594,1704339043182,-241.69802317,0.00032766,2]
[310105595,1704339043193,-241.69802317,0.00032766,2]
[310105596,1704339043204,-241.69802317,0.00032766,2]
[310105597,1704339043214,-241.69802317,0.00032766,2]
[310105598,1704339043223,-241.69802317,0.00032766,2]
[310105599,1704339043232,-241.69802317,0.00032766,2]
[310105600,1704339043243,-241.69802317,0.00032766,2]
[310105601,1704339043255,-241.69802317,0.00032766,2]
[310105602,1704339043265,-241.69802317,0.00032766,2]
[310105603,1704339043276,-241.69802317,0.00032766,2]
[310105605,1704339043286,-241.69802317,0.00032766,2]
[310105606,1704339043298,-241.69802317,0.00032766,2]
[310105607,1704339043308,-241.69802317,0.00032766,2]
[310105608,1704339043317,-241.69802317,0.00032766,2]
[310105609,1704339043327,-241.69802317,0.00032766,2]
[310105610,1704339043337,-241.69802317,0.00032766,2]
[310105611,1704339043346,-241.69802317,0.00032766,2]
[310105612,1704339043356,-241.69802317,0.00032766,2]
[310105613,1704339043365,-241.69802317,0.00032766,2]
[310105614,1704339043375,-241.69802317,0.00032766,2]
[310105615,1704339043384,-241.69802317,0.00032766,2]
[310105616,1704339043393,-241.69802317,0.00032766,2]
[310105617,1704339043403,-241.69802317,0.00032766,2]
[310105618,1704339043413,-241.69802317,0.00032766,2]
[310105619,1704339043423,-241.69802317,0.00032766,2]
[310105620,1704339043432,-241.69802317,0.00032766,2]
[310105621,1704339043441,-241.69802317,0.00032766,2]
[310105622,1704339043451,-241.69802317,0.00032766,2]
[310105623,1704339043461,-241.69802317,0.00032766,2]
[310105624,1704339043471,-241.69802317,0.00032766,2]
[310105625,1704339043482,-241.69802317,0.00032766,2]
[310105626,1704339043492,-241.69802317,0.00032766,2]
[310105627,1704339043501,-241.69802317,0.00032766,2]
[310105628,1704339043510,-241.69802317,0.00032766,2]
[310105629,1704339043520,-241.69802317,0.00032766,2]
[310105630,1704339043532,-241.69802317,0.00032766,2]
[310105631,1704339043541,-241.69802317,0.00032766,2]
[310105632,1704339043550,-241.69802317,0.00032766,2]
[310105633,1704339043560,-241.69802317,0.00032766,2]
[310105634,1704339043571,-241.69802317,0.00032766,2]
[310105635,1704339043580,-241.69802317,0.00032766,2]
[310105636,1704339043589,-241.69802317,0.00032766,2]
[310105637,1704339043598,-241.69802317,0.00032766,2]
[310105638,1704339043608,-241.69802317,0.00032766,2]
[310105639,1704339043617,-241.69802317,0.00032766,2]
[310105640,1704339043628,-241.69802317,0.00032766,2]
[310105641,1704339043637,-241.69802317,0.00032766,2]
[310105642,1704339043647,-241.69802317,0.00032766,2]
[310105643,1704339043656,-241.69802317,0.00032766,2]
[310105644,1704339043665,-241.69802317,0.00032766,2]
[310105645,1704339043675,-241.69802317,0.00032766,2]
[310105646,1704339043685,-241.69802317,0.00032766,2]
[310105647,1704339043694,-241.69802317,0.00032766,2]
[310105648,1704339043704,-241.69802317,0.00032766,2]
[310105649,1704339043713,-241.69802317,0.00032766,2]
[310105650,1704339043723,-241.69802317,0.00032766,2]
[310105651,1704339043733,-241.69802317,0.00032766,2]
[310105652,1704339043743,-241.69802317,0.00032766,2]
[310105653,1704339043753,-241.69802317,0.00032766,2]
[310105654,1704339043763,-241.69802317,0.00032766,2]
[310105655,1704339043772,-241.69802317,0.00032766,2]
[310105656,1704339043781,-241.69802317,0.00032766,2]
[310105657,1704339043791,-241.69802317,0.00032766,2]
[310105658,1704339043802,-241.69802317,0.00032766,2]
[310105659,1704339043812,-241.69802317,0.00032766,2]
[310105660,1704339043821,-241.69802317,0.00032766,2]
[310105661,1704339043831,-241.69802317,0.00032766,2]
[310105662,1704339043842,-241.69802317,0.00032766,2]
[310105663,1704339043851,-241.69802317,0.00032766,2]
[310105664,1704339043860,-241.69802317,0.00032766,2]
[310105665,1704339043870,-985.01497805,0.00032774,4]
[310105666,1704339043883,-1000.0,0.00032775,2]
[310105667,1704339043892,-7500.0,0.00032776,2]
[310105668,1704339043901,-2000.0,0.00032776,4]
[310105669,1704339043910,-4153.83109986,0.00032776,2]
[310105670,1704339044177,-4500.0,0.00032776,2]
[310105671,1704339044191,-310.24321014,0.00032776,2]
[310105672,1704339044204,-2363.70190535,0.00032776,2]
[310105673,1704339044226,-768.97991818,0.00032776,2]
[310105674,1704339044249,-8164.56745889,0.00032776,2]
[310105685,1704339045726,-681.6710574,0.00032774,4]
[310105686,1704339045735,-1709.35870456,0.00032776,2]
[310105687,1704339045746,-1004.54108079,0.00032776,2]
[310105688,1704339045782,-547.01659378,0.00032776,2]
[310105689,1704339045794,-5981.98078721,0.00032776,2]
[310105690,1704339045805,-6345.2887258,0.00032776,2]
[310105691,1704339046011,-155.0,0.00031999,4]
[310105692,1704339046020,-4128.1475,0.00032776,2]
[310105693,1704339046031,-262.84086653,0.00032776,2]
[310105694,1704339046042,-560.3,0.00032776,2]
[310105695,1704339046053,-1188.89733028,0.00032776,2]
[310105737,1704340225445,300.0,0.00029,30]
[310105762,1704340231879,-430.24132448,0.00028531,2]
[310105763,1704340231889,-338.08182442,0.00028532,2]
[310105764,1704340231898,-201.39591919,0.00028533,2]
[310105765,1704340231907,-500.0,0.00028548,2]
[310105766,1704340231917,-500.0,0.00029095,2]
[310105767,1704340231927,-184.10041217,0.00029397,2]
[310105768,1704340231945,-218.38958783,0.00029397,2]
[310105769,1704340231956,-500.0,0.00029641,2]
[310105770,1704340231965,-1907.900048,0.0002985,2]
[310105771,1704340231975,-301.62887764,0.0002991,2]
[310105772,1704340231987,-410.16153139,0.0002991,2]
[310105773,1704340232003,-170.20959097,0.0002991,2]
[310105774,1704340232013,-1000.0,0.0003,2]
[310105775,1704340232022,-499.99,0.0003,2]
[310105776,1704340232032,-1751.69,0.0003,2]
[310105777,1704340232042,-1480.27,0.0003,2]
[310105778,1704340232051,-300.0,0.0003,31]
[310105779,1704340232060,-681.6710574,0.00030184,4]
[310105780,1704340232070,-155.0,0.00030185,2]
[310105781,1704340232079,-1975.46,0.00030186,2]
[310105782,1704340232088,-500.0,0.00030188,2]
[310105783,1704340232098,-500.0,0.00030734,2]
[310105784,1704340232107,-150.0,0.00030744,2]
[310105785,1704340232117,-252.14,0.00030753,2]
[310105786,1704340232128,-195.49317268,0.000308,2]
[310105787,1704340232137,-3633.1,0.00030844,2]
[310105788,1704340232147,-1512.04,0.00030883,2]
[310105789,1704340232157,-300.0,0.00031,32]
[310105790,1704340232167,-150.0,0.00031,2]
[310105791,1704340232177,-158.58,0.0003108,2]
[310105792,1704340232187,-156.1,0.00031134,2]
[310105793,1704340232197,-500.0,0.00031281,2]
[310105794,1704340232206,-150.0,0.00031292,2]
[310105795,1704340232216,-647.66,0.00031297,2]
[310105796,1704340232227,-2893.17108325,0.00031309,2]
[310105799,1704340232248,-1311.61734267,0.00031309,2]
[310105801,1704340232261,-2373.05605725,0.00031309,2]
[310105846,1704340238419,-150.0,0.00030315,2]
[310105848,1704340238429,-150.0,0.00030863,2]
[310105849,1704340238438,-11974.63551683,0.00031309,2]
[310105851,1704340238448,-250.0,0.00031315,2]
[310105852,1704340238458,-173.52,0.00031399,2]
[310105853,1704340238468,-180.89438607,0.00031411,2]
[310105854,1704340238477,-417.37,0.00031518,2]
[310105855,1704340238487,-402.49,0.00031661,2]
[310105857,1704340238497,-1000.0,0.00031744,2]
[310105858,1704340238506,-209.0,0.00031786,2]
[310105859,1704340238515,-500.0,0.00031827,2]
[310105860,1704340238524,-166.57,0.00031929,2]
[310105861,1704340238534,-14722.82682507,0.0003199,2]
[310105862,1704340238544,-5000.0,0.00032,7]
[310105863,1704340238555,-7433.35648462,0.00032,30]
[310105864,1704340238564,-1000.0,0.00032,3]
[310105865,1704340238574,-300.0,0.00032,33]
[310105866,1704340238584,-179.82017932,0.00032112,4]
[310105867,1704340238594,-156.1,0.00032113,2]
[310105868,1704340238604,-1005.0,0.000322,3]
[310105869,1704340238613,-338.0,0.00032222,2]
[310105870,1704340238623,-1000.0,0.000323,3]
[310105871,1704340238632,-407.06,0.00032335,2]
[310105872,1704340238642,-235.39,0.00032335,2]
[310105873,1704340238652,-151.26,0.00032335,2]
[310105874,1704340238668,-407.06,0.00032335,2]
[310105875,1704340238683,-407.06,0.00032335,2]
[310105876,1704340238693,-300.0,0.00032335,2]
[310105877,1704340238703,-407.06,0.00032335,2]
[310105878,1704340238713,-500.0,0.00032374,2]
[310105879,1704340238723,-1000.0,0.000324,4]
[310105880,1704340238733,-1000.0,0.000325,3]
[310105881,1704340238743,-1000.0,0.000325,3]
[310105882,1704340238753,-462.0,0.000325,4]
[310105883,1704340238763,-2138.8023,0.00032576,2]
[310105884,1704340238773,-580.96430809,0.00032595,7]
[310105885,1704340238794,-7009.6806766,0.00032595,7]
[310105886,1704340238804,-514.19451045,0.00032595,2]
[310105887,1704340238813,-617.72447849,0.00032665,4]
[310105888,1704340238825,-183.5045312,0.00032674,4]
[310105889,1704340238834,-610.61,0.00032675,2]
[310105890,1704340238845,-13095.6212,0.00032676,2]
[310105891,1704340238855,-6281.032,0.00032676,2]
[310105892,1704340238865,-303.13326296,0.00032698,4]
[310105893,1704340238876,-155.0,0.00032699,4]
[310105894,1704340238886,-37389.76916939,0.000327,2]
[310105900,1704340240438,-306.09729367,0.000327,2]
[310105911,1704340241225,-652.39120042,0.000327,2]
[310105912,1704340241237,-517.96329994,0.000327,2]
[310105913,1704340241249,-1431.4495505,0.000327,2]
[310105914,1704340241345,-676.14249064,0.000327,2]
[310105915,1704340241357,-1261.76904792,0.000327,2]
[310105916,1704340241411,-2710.38515923,0.000327,2]
[310105932,1704340242882,-2689.57781667,0.000327,2]
[310105935,1704340242895,-739.28384998,0.000327,2]
[310105937,1704340242906,-527.566,0.000327,2]
[310105942,1704340242943,-1250.04000516,0.000327,2]
[310105943,1704340243008,-692.91771303,0.000327,2]
[310105944,1704340243020,-293.30521316,0.000327,2]
[310105945,1704340243072,-1373.69775017,0.000327,2]
[310105946,1704340243135,-3383.02901458,0.000327,2]
[310105947,1704340243199,-8491.64494076,0.000327,2]
[310105957,1704340246044,-270.58952675,0.00032699,4]
[310105958,1704340246053,-310.53813235,0.00032699,2]
[310105959,1704340246063,-155.0,0.00032699,2]
[310105960,1704340246073,-91.50874528,0.000327,2]
[310105961,1704340246108,-3685.87365913,0.000327,2]
[310105962,1704340246172,-1000.0,0.000327,2]
[310105963,1704340246183,-4033.75862566,0.000327,2]
[310105966,1704340256584,750.000001,0.00029,30]
[310105967,1704340269325,4856862.11043719,0.00023,2]
[310105976,1704340525482,-193.7889544,0.0002293,2]
[310105977,1704340525504,-338.08182442,0.00022999,2]
[310105978,1704340525527,-99468.12922118,0.00023,2]
[310106016,1704340689075,237.34733794,0.00023918,8]
[310106019,1704340745161,669.06,0.00022302,2]
[310106020,1704340747715,189.62,0.00022302,10]
[310106021,1704340748669,189.62,0.00022849,10]
[310106022,1704340748705,189.62,0.00023395,10]
[310106023,1704340748736,189.62,0.00023941,10]
[310106024,1704340755284,291.63,0.00022274,2]
[310106026,1704340766649,500.0,0.00022259,2]
[310106027,1704340768439,2705.0,0.00022259,2]
[310106030,1704340804146,172.32,0.00022353,2]
[310106032,1704340824358,368.39,0.00022431,2]
[310106033,1704340832650,170.37,0.00022346,2]
[310106035,1704340834118,5927.28,0.00022346,2]
[310106039,1704340872197,2974.16,0.00022172,2]
[310106040,1704340927168,250.0,0.0002211,2]
[310106041,1704340967307,200.0,0.00022176,2]
[310106042,1704340992003,431.97,0.00020192,2]
[310106043,1704340992070,200.0,0.0002211,2]
[310106044,1704340992429,431.97,0.00022456,2]
[310106045,1704341024340,1852.42,0.0002211,2]
[310106047,1704341086284,211.06,0.00022235,2]
[310106049,1704341148827,258.95,0.00022058,2]
[310106050,1704341177194,773.11,0.00022008,2]
[310106051,1704341212406,1000.0,0.00022059,2]
[310106053,1704341234559,189.62,0.00022008,10]
[310106054,1704341279892,172.32,0.0002217,2]
[310106060,1704341315562,343.83,0.00022058,2]
[310106089,1704341432158,-361.12454919,0.00022556,2]
[310106090,1704341432172,-338.08182442,0.00022557,2]
[310106091,1704341432182,-157.4,0.0002257,2]
[310106092,1704341432192,-273.64398206,0.00022807,2]
[310106093,1704341432204,-154.0657145,0.0002283,2]
[310106094,1704341432214,-154.06571449,0.00022838,2]
[310106095,1704341432223,-43.59770432,0.00022845,2]
[310106096,1704341432237,-110.46801017,0.00022845,2]
[310106097,1704341432246,-154.06571449,0.00022853,2]
[310106098,1704341432256,-273.64398205,0.00022854,2]
[310106099,1704341432267,-154.06571449,0.00022861,2]
[310106100,1704341432277,-154.06571449,0.00022868,2]
[310106101,1704341432287,-251.33,0.00022868,2]
[310106102,1704341432297,-26.63446297,0.00022868,2]
[310106103,1704341432309,-124.35553703,0.00022868,2]
[310106104,1704341432319,-232.41,0.00022868,2]
[310106105,1704341432329,-154.06571449,0.00022876,2]
[310106106,1704341432338,-437.79106792,0.00022876,2]
[310106107,1704341432352,-261.83893208,0.00022876,2]
[310106108,1704341432361,-558.52426119,0.00022883,2]
[310106109,1704341432372,-154.06571449,0.00022884,2]
[310106110,1704341432381,-154.06571449,0.00022892,2]
[310106111,1704341432391,-150.0,0.00022897,2]
[310106112,1704341432402,-736.19248172,0.00022898,2]
[310106113,1704341432411,-1260.7259798,0.00022898,2]
[310106118,1704341432446,-1101.79038209,0.00022898,2]
[310106120,1704341432458,-375.67221735,0.00022898,2]
[310106123,1704341432471,-150.52744713,0.00022898,2]
[310106125,1704341432480,-754.83558166,0.00022898,2]
[310106127,1704341432493,-1625.31993907,0.00022898,2]
[310106129,1704341432502,-624.66515753,0.00022898,2]
[310106131,1704341432512,-3302.95593336,0.00022898,2]
[310106133,1704341432524,-677.95451397,0.00022898,2]
[310106154,1704341432709,-502.78406741,0.00022898,2]
[310106161,1704341432756,-392.10092355,0.00022898,2]
[310106163,1704341432766,-1907.21117094,0.00022898,2]
[310106165,1704341432777,-456.19868676,0.00022898,2]
[310106172,1704341432829,-1278.51113417,0.00022898,2]
[310106235,1704341438115,-278.43059384,0.00022898,2]
[310106236,1704341438125,-530.33345111,0.00022898,2]
[310106237,1704341438139,-3441.36889309,0.00022898,2]
[310106238,1704341438150,-399.1011347,0.00022898,2]
[310106239,1704341438160,-190.32953842,0.00022898,2]
[310106240,1704341438172,-309.43022401,0.00022898,2]
[310106241,1704341438181,-758.9604994,0.00022898,2]
[310106242,1704341438191,-161.18591718,0.00022898,2]
[310106243,1704341438201,-355.02113899,0.00022898,2]
[310106244,1704341438210,-160.49323646,0.00022898,2]
[310106245,1704341438220,-1451.82372347,0.00022899,2]
[310106246,1704341438234,-271.50550584,0.00022899,2]
[310106247,1704341438247,-8016.07738084,0.00022899,2]
[310106248,1704341438259,-2248.496947,0.00022899,2]
[310106249,1704341438272,-18032.44336965,0.00022899,2]
[310106250,1704341438281,-154.06571449,0.00022899,2]
[310106251,1704341438292,-1202.21193225,0.000229,2]